[Event "Betsys MČR v online bleskovém šachu 2021"]
[Site "Chess.com"]
[Date "2021.04.17"]
[Round "2"]
[White "Pokemonchess"]
[Black "Naty139"]
[Result "0-1"]
[WhiteElo "1935"]
[BlackElo "2284"]
[TimeControl "180+1"]
[EndTime "9:17:30 PDT"]
[Termination "Uživatel Naty139 zvítězil matem"]

1. e4 {[%clk 0:03:00.9]} 1... Nf6 {[%clk 0:02:57.7]} 2. e5 {[%clk 0:02:59.8]}
2... Nd5 {[%clk 0:02:57.2]} 3. d4 {[%clk 0:02:59.9]} 3... d6 {[%clk 0:02:56.7]}
4. exd6 {[%clk 0:02:59.3]} 4... cxd6 {[%clk 0:02:56.1]} 5. Nf3 {[%clk
0:02:58.9]} 5... g6 {[%clk 0:02:55.4]} 6. Bc4 {[%clk 0:02:57.8]} 6... Nb6 {[%clk
0:02:53.4]} 7. Bb3 {[%clk 0:02:57.8]} 7... d5 {[%clk 0:02:53.1]} 8. Bf4 {[%clk
0:02:54.8]} 8... Bg7 {[%clk 0:02:50]} 9. Nc3 {[%clk 0:02:54.8]} 9... O-O {[%clk
0:02:47.3]} 10. O-O {[%clk 0:02:52.1]} 10... Bg4 {[%clk 0:02:47.4]} 11. h3
{[%clk 0:02:47.1]} 11... Bxf3 {[%clk 0:02:46.3]} 12. Qxf3 {[%clk 0:02:47]} 12...
e6 {[%clk 0:02:46.9]} 13. Be5 {[%clk 0:02:41.5]} 13... Bxe5 {[%clk 0:02:29.7]}
14. dxe5 {[%clk 0:02:39.8]} 14... Nc6 {[%clk 0:02:30.6]} 15. Rfe1 {[%clk
0:02:29.8]} 15... Qc7 {[%clk 0:02:26.3]} 16. Qg3 {[%clk 0:02:24.8]} 16... a6
{[%clk 0:02:20.2]} 17. h4 {[%clk 0:02:13.9]} 17... h5 {[%clk 0:02:18.5]} 18. Nd1
{[%clk 0:01:25.3]} 18... Nd4 {[%clk 0:02:05.3]} 19. Ne3 {[%clk 0:01:18.9]} 19...
a5 {[%clk 0:01:55.2]} 20. Qf4 {[%clk 0:00:58.3]} 20... Nxb3 {[%clk 0:01:39.7]}
21. axb3 {[%clk 0:00:52.4]} 21... Nd7 {[%clk 0:01:37.3]} 22. Rac1 {[%clk
0:00:41.4]} 22... Qxe5 {[%clk 0:01:25.9]} 23. Qxe5 {[%clk 0:00:40.5]} 23... Nxe5
{[%clk 0:01:26.8]} 24. Nxd5 {[%clk 0:00:40.3]} 24... Ng4 {[%clk 0:01:14.5]} 25.
Nb6 {[%clk 0:00:33.2]} 25... Ra6 {[%clk 0:01:12.6]} 26. Nc4 {[%clk 0:00:30.1]}
26... b5 {[%clk 0:01:10.4]} 27. Ne5 {[%clk 0:00:29.1]} 27... Rc8 {[%clk
0:01:01]} 28. Nxg4 {[%clk 0:00:28]} 28... hxg4 {[%clk 0:01:01.9]} 29. Re4 {[%clk
0:00:27.4]} 29... Rac6 {[%clk 0:00:56.2]} 30. Re5 {[%clk 0:00:24.3]} 30... Rc5
{[%clk 0:00:52.9]} 31. Rxc5 {[%clk 0:00:23.6]} 31... Rxc5 {[%clk 0:00:53.8]} 32.
c3 {[%clk 0:00:23.4]} 32... Kg7 {[%clk 0:00:51.4]} 33. Kh2 {[%clk 0:00:22.7]}
33... f5 {[%clk 0:00:49]} 34. Kg3 {[%clk 0:00:22.4]} 34... Kf6 {[%clk
0:00:49.4]} 35. Kf4 {[%clk 0:00:22.2]} 35... Re5 {[%clk 0:00:46.3]} 36. Kg3
{[%clk 0:00:21.2]} 36... Re2 {[%clk 0:00:45.7]} 37. c4 {[%clk 0:00:20.9]} 37...
Rxb2 {[%clk 0:00:44.3]} 38. cxb5 {[%clk 0:00:20.3]} 38... Rxb3+ {[%clk
0:00:44.7]} 39. Kh2 {[%clk 0:00:19.5]} 39... Rxb5 {[%clk 0:00:45.6]} 40. Ra1
{[%clk 0:00:19.6]} 40... f4 {[%clk 0:00:44.5]} 41. Ra4 {[%clk 0:00:19.4]} 41...
e5 {[%clk 0:00:44.1]} 42. f3 {[%clk 0:00:18.7]} 42... g3+ {[%clk 0:00:43.4]} 43.
Kh3 {[%clk 0:00:19]} 43... Kf5 {[%clk 0:00:40.9]} 44. Ra3 {[%clk 0:00:19.2]}
44... Rb1 {[%clk 0:00:36.4]} 45. Ra1 {[%clk 0:00:14.4]} 45... Rxa1 {[%clk
0:00:35.4]} 46. h5 {[%clk 0:00:14.4]} 46... Rh1# {[%clk 0:00:34.9]} 0-1

[Event "Betsys MČR v online bleskovém šachu 2021"]
[Site "Chess.com"]
[Date "2021.04.17"]
[Round "2"]
[White "OndrejBorkovec"]
[Black "tucnak64"]
[Result "0-1"]
[WhiteElo "1507"]
[BlackElo "2105"]
[TimeControl "180+1"]
[EndTime "9:17:30 PDT"]
[Termination "Uživatel tucnak64 zvítězil po vzdání soupeře"]

1. d4 {[%clk 0:03:00.9]} 1... c5 {[%clk 0:03:00.9]} 2. Nf3 {[%clk 0:02:57.9]}
2... Nf6 {[%clk 0:02:50.1]} 3. c4 {[%clk 0:02:56.1]} 3... cxd4 {[%clk
0:02:42.5]} 4. Nxd4 {[%clk 0:02:55.6]} 4... b6 {[%clk 0:02:42.9]} 5. Nc3 {[%clk
0:02:50.6]} 5... Bb7 {[%clk 0:02:37.9]} 6. Bf4 {[%clk 0:02:48.7]} 6... d6 {[%clk
0:02:37.2]} 7. Ncb5 {[%clk 0:02:45.4]} 7... e5 {[%clk 0:02:32.6]} 8. Qa4 {[%clk
0:02:32.3]} 8... Nbd7 {[%clk 0:02:28.4]} 9. Nf5 {[%clk 0:02:03.9]} 9... Qb8
{[%clk 0:02:05.1]} 10. Bg5 {[%clk 0:01:54.6]} 10... a6 {[%clk 0:01:58]} 11. Nc3
{[%clk 0:01:49.6]} 11... b5 {[%clk 0:01:52.6]} 12. cxb5 {[%clk 0:01:46.1]} 12...
d5 {[%clk 0:01:51.3]} 13. e3 {[%clk 0:01:35.6]} 13... g6 {[%clk 0:01:44.2]} 14.
Ng3 {[%clk 0:01:20.3]} 14... axb5 {[%clk 0:01:25.1]} 15. Qxb5 {[%clk 0:01:17.6]}
15... Be7 {[%clk 0:01:24.8]} 16. Be2 {[%clk 0:01:09.9]} 16... O-O {[%clk
0:01:18.7]} 17. Bh6 {[%clk 0:01:05.3]} 17... Rc8 {[%clk 0:01:15.2]} 18. O-O
{[%clk 0:01:03.7]} 18... d4 {[%clk 0:01:10.1]} 19. exd4 {[%clk 0:01:02]} 19...
exd4 {[%clk 0:01:09.5]} 20. Na4 {[%clk 0:00:38.5]} 20... Bc6 {[%clk 0:00:49.8]}
21. Qxb8 {[%clk 0:00:34.1]} 21... Rcxb8 {[%clk 0:00:50.7]} 22. b3 {[%clk
0:00:31.3]} 22... Bxa4 {[%clk 0:00:47.4]} 23. bxa4 {[%clk 0:00:31.2]} 23... Rxa4
{[%clk 0:00:48]} 24. Rfd1 {[%clk 0:00:20.4]} 24... Rb2 {[%clk 0:00:39.7]} 25.
Rac1 {[%clk 0:00:19.2]} 25... Bf8 {[%clk 0:00:32.5]} 26. Bxf8 {[%clk 0:00:18.4]}
26... Nxf8 {[%clk 0:00:33.4]} 27. Rc8 {[%clk 0:00:18.1]} 27... Kg7 {[%clk
0:00:32.9]} 28. Rdc1 {[%clk 0:00:18]} 28... Ne6 {[%clk 0:00:32.3]} 29. R8c7
{[%clk 0:00:15.9]} 29... Nxc7 {[%clk 0:00:28.1]} 30. Rxc7 {[%clk 0:00:16.8]}
30... Raxa2 {[%clk 0:00:27.7]} 31. h3 {[%clk 0:00:16.6]} 31... Rxe2 {[%clk
0:00:27.1]} 32. Nxe2 {[%clk 0:00:16.5]} 32... Rxe2 {[%clk 0:00:27.7]} 33. Rc4
{[%clk 0:00:16.5]} 33... d3 {[%clk 0:00:27.4]} 34. Rd4 {[%clk 0:00:16.5]} 34...
d2 {[%clk 0:00:27.7]} 35. Kh2 {[%clk 0:00:16.9]} 35... Rxf2 {[%clk 0:00:27.3]}
36. Kg3 {[%clk 0:00:16.3]} 36... Re2 {[%clk 0:00:26.3]} 37. Kf3 {[%clk
0:00:16.8]} 37... Re1 {[%clk 0:00:24.4]} 38. Kf2 {[%clk 0:00:17]} 38... d1=Q
{[%clk 0:00:23.6]} 39. Rxd1 {[%clk 0:00:16.9]} 39... Rxd1 {[%clk 0:00:24.5]} 40.
Ke2 {[%clk 0:00:17.5]} 40... Ra1 {[%clk 0:00:24.5]} 41. Kd2 {[%clk 0:00:17.8]}
41... Ra2+ {[%clk 0:00:24.1]} 42. Ke3 {[%clk 0:00:18.2]} 42... Rxg2 {[%clk
0:00:24.4]} 0-1

[Event "Betsys MČR v online bleskovém šachu 2021"]
[Site "Chess.com"]
[Date "2021.04.17"]
[Round "2"]
[White "Filipdol"]
[Black "Stalri"]
[Result "0-1"]
[WhiteElo "1861"]
[BlackElo "2193"]
[TimeControl "180+1"]
[EndTime "9:17:31 PDT"]
[Termination "Uživatel Stalri zvítězil matem"]

1. e4 {[%clk 0:03:00.9]} 1... c5 {[%clk 0:02:59.6]} 2. Nc3 {[%clk 0:03:00]} 2...
e6 {[%clk 0:02:59.3]} 3. f4 {[%clk 0:02:59.5]} 3... Nc6 {[%clk 0:02:57]} 4. Bb5
{[%clk 0:02:58.4]} 4... a6 {[%clk 0:02:52]} 5. Bxc6 {[%clk 0:02:58.3]} 5... bxc6
{[%clk 0:02:52.6]} 6. Nf3 {[%clk 0:02:57.9]} 6... d5 {[%clk 0:02:52.8]} 7. e5
{[%clk 0:02:57.9]} 7... h5 {[%clk 0:02:50.6]} 8. d3 {[%clk 0:02:57.3]} 8... Nh6
{[%clk 0:02:50.5]} 9. O-O {[%clk 0:02:56.1]} 9... Nf5 {[%clk 0:02:49.6]} 10. Na4
{[%clk 0:02:53.1]} 10... h4 {[%clk 0:02:45.5]} 11. b3 {[%clk 0:02:50.5]} 11...
Bb7 {[%clk 0:02:43.4]} 12. Qe1 {[%clk 0:02:40.4]} 12... Be7 {[%clk 0:02:35.4]}
13. c4 {[%clk 0:02:34]} 13... Qc7 {[%clk 0:02:05.7]} 14. Ba3 {[%clk 0:02:20.5]}
14... Rd8 {[%clk 0:01:47.6]} 15. Rd1 {[%clk 0:02:09.3]} 15... Ba8 {[%clk
0:01:45.4]} 16. Qf2 {[%clk 0:02:00.9]} 16... d4 {[%clk 0:01:38.6]} 17. Rd2
{[%clk 0:01:46.6]} 17... Bb7 {[%clk 0:01:27.8]} 18. Re1 {[%clk 0:01:36.9]} 18...
Kf8 {[%clk 0:01:24.6]} 19. Bxc5 {[%clk 0:01:25.3]} 19... Kg8 {[%clk 0:01:15.7]}
20. Bb6 {[%clk 0:01:16.6]} 20... Qc8 {[%clk 0:01:12.4]} 21. Bxd8 {[%clk
0:01:14.6]} 21... Qxd8 {[%clk 0:01:12.1]} 22. c5 {[%clk 0:00:59.5]} 22... a5
{[%clk 0:00:52.7]} 23. Rc1 {[%clk 0:00:55.6]} 23... Ba6 {[%clk 0:00:50.2]} 24.
Nb2 {[%clk 0:00:46.5]} 24... Qd5 {[%clk 0:00:47.9]} 25. Na4 {[%clk 0:00:36.1]}
25... Bb5 {[%clk 0:00:44.4]} 26. Nb6 {[%clk 0:00:34.4]} 26... Qd8 {[%clk
0:00:44.5]} 27. a4 {[%clk 0:00:30.9]} 27... Ba6 {[%clk 0:00:40.8]} 28. g3 {[%clk
0:00:25.3]} 28... hxg3 {[%clk 0:00:38.3]} 29. hxg3 {[%clk 0:00:25.9]} 29... Bxc5
{[%clk 0:00:38.1]} 30. Rxc5 {[%clk 0:00:19.9]} 30... Qxb6 {[%clk 0:00:37.9]} 31.
Rcc2 {[%clk 0:00:19.9]} 31... Ne3 {[%clk 0:00:26.6]} 32. Rb2 {[%clk 0:00:18.2]}
32... c5 {[%clk 0:00:25.1]} 33. Ng5 {[%clk 0:00:17.1]} 33... Bb7 {[%clk
0:00:24.3]} 34. Ne4 {[%clk 0:00:16.5]} 34... Bxe4 {[%clk 0:00:19.6]} 35. dxe4
{[%clk 0:00:17.4]} 35... Qa6 {[%clk 0:00:19.3]} 36. Qe2 {[%clk 0:00:16.3]} 36...
Qb7 {[%clk 0:00:18.2]} 37. Rd3 {[%clk 0:00:14.3]} 37... Qxe4 {[%clk 0:00:18]}
38. Rxe3 {[%clk 0:00:12.7]} 38... Qh1+ {[%clk 0:00:18]} 39. Kf2 {[%clk
0:00:12.2]} 39... Rh2# {[%clk 0:00:18.7]} 0-1

[Event "Betsys MČR v online bleskovém šachu 2021"]
[Site "Chess.com"]
[Date "2021.04.17"]
[Round "2"]
[White "NeumanPetr"]
[Black "Zelezny1984"]
[Result "1-0"]
[WhiteElo "2506"]
[BlackElo "2061"]
[TimeControl "180+1"]
[EndTime "9:17:32 PDT"]
[Termination "Uživatel NeumanPetr zvítězil po vzdání soupeře"]

1. d4 {[%clk 0:03:00.9]} 1... e6 {[%clk 0:03:00.1]} 2. c4 {[%clk 0:02:59.3]}
2... d5 {[%clk 0:03:00.3]} 3. Nc3 {[%clk 0:02:59.9]} 3... c5 {[%clk 0:03:00.8]}
4. cxd5 {[%clk 0:02:59.1]} 4... cxd4 {[%clk 0:03:01.2]} 5. Qa4+ {[%clk
0:02:58.9]} 5... Bd7 {[%clk 0:03:00.6]} 6. Qxd4 {[%clk 0:02:58.8]} 6... exd5
{[%clk 0:03:01.5]} 7. Qxd5 {[%clk 0:02:59]} 7... Nf6 {[%clk 0:03:02.1]} 8. Qb3
{[%clk 0:02:55.8]} 8... Na6 {[%clk 0:03:01.5]} 9. Bg5 {[%clk 0:02:46.4]} 9...
Nc5 {[%clk 0:02:49.1]} 10. Qd1 {[%clk 0:02:37.2]} 10... Qb6 {[%clk 0:02:35.6]}
11. Bxf6 {[%clk 0:02:29.8]} 11... Qxf6 {[%clk 0:02:25.8]} 12. Nf3 {[%clk
0:02:21.2]} 12... Rd8 {[%clk 0:02:21.7]} 13. e3 {[%clk 0:01:45.9]} 13... Be7
{[%clk 0:02:05.6]} 14. Be2 {[%clk 0:01:41.3]} 14... O-O {[%clk 0:02:04.7]} 15.
O-O {[%clk 0:01:34.6]} 15... Bc6 {[%clk 0:01:49.8]} 16. Nd4 {[%clk 0:01:31.1]}
16... Ne6 {[%clk 0:01:38.4]} 17. Nxc6 {[%clk 0:01:13.4]} 17... Rxd1 {[%clk
0:01:39.3]} 18. Nxe7+ {[%clk 0:01:13.1]} 18... Qxe7 {[%clk 0:01:28.4]} 19. Rfxd1
{[%clk 0:01:14]} 19... Qb4 {[%clk 0:01:13.6]} 20. Rab1 {[%clk 0:01:07.3]} 20...
h6 {[%clk 0:01:10.8]} 21. Bf3 {[%clk 0:01:02.2]} 21... b6 {[%clk 0:00:55]} 22.
a3 {[%clk 0:01:00.2]} 22... Qe7 {[%clk 0:00:46.9]} 23. Nd5 {[%clk 0:00:55.9]}
23... Qh4 {[%clk 0:00:47.4]} 24. g3 {[%clk 0:00:53.7]} 24... Qa4 {[%clk
0:00:37.5]} 25. Nc3 {[%clk 0:00:46.2]} 25... Qa5 {[%clk 0:00:34.1]} 26. Rd5
{[%clk 0:00:41.3]} 26... Qa6 {[%clk 0:00:34.4]} 27. Rbd1 {[%clk 0:00:38.7]}
27... Ng5 {[%clk 0:00:33.4]} 28. Be2 {[%clk 0:00:35.8]} 28... Qc8 {[%clk
0:00:27.1]} 29. h4 {[%clk 0:00:34.8]} 29... Ne6 {[%clk 0:00:19.8]} 30. Bg4
{[%clk 0:00:31.3]} 30... Qc6 {[%clk 0:00:18.5]} 31. Rd6 {[%clk 0:00:28.8]} 31...
Qc4 {[%clk 0:00:17.8]} 32. Be2 {[%clk 0:00:27.5]} 32... Qb3 {[%clk 0:00:18]} 33.
R1d2 {[%clk 0:00:25.3]} 33... Nc5 {[%clk 0:00:17.8]} 34. Bf3 {[%clk 0:00:21.3]}
34... a5 {[%clk 0:00:04.8]} 35. Bd1 {[%clk 0:00:20.2]} 35... Qc4 {[%clk
0:00:03]} 36. Be2 {[%clk 0:00:19.6]} 36... Qa2 {[%clk 0:00:02.4]} 37. Nxa2
{[%clk 0:00:18.6]} 1-0

[Event "Betsys MČR v online bleskovém šachu 2021"]
[Site "Chess.com"]
[Date "2021.04.17"]
[Round "2"]
[White "Gicko13"]
[Black "5265"]
[Result "0-1"]
[WhiteElo "2078"]
[BlackElo "1611"]
[TimeControl "180+1"]
[EndTime "9:17:32 PDT"]
[Termination "Uživatel 5265 zvítězil na čas"]

1. e4 {[%clk 0:03:00.9]} 1... e5 {[%clk 0:02:59.8]} 2. f4 {[%clk 0:03:00.1]}
2... Bc5 {[%clk 0:02:58.1]} 3. Nf3 {[%clk 0:02:59.6]} 3... d6 {[%clk 0:02:57.2]}
4. Nc3 {[%clk 0:02:42]} 4... Nf6 {[%clk 0:02:28.7]} 5. Bc4 {[%clk 0:02:31.5]}
5... Nc6 {[%clk 0:02:26]} 6. d3 {[%clk 0:02:28.2]} 6... a6 {[%clk 0:02:23.3]} 7.
f5 {[%clk 0:02:15.5]} 7... b5 {[%clk 0:02:19.9]} 8. Bb3 {[%clk 0:02:12.1]} 8...
Na5 {[%clk 0:02:15.2]} 9. Bg5 {[%clk 0:02:02.2]} 9... h6 {[%clk 0:02:09]} 10.
Bh4 {[%clk 0:01:58.1]} 10... Nxb3 {[%clk 0:02:03.8]} 11. axb3 {[%clk 0:01:56.5]}
11... Bb7 {[%clk 0:02:00.1]} 12. h3 {[%clk 0:01:38.8]} 12... Qd7 {[%clk
0:01:47]} 13. Bxf6 {[%clk 0:01:25.7]} 13... gxf6 {[%clk 0:01:47.9]} 14. Qe2
{[%clk 0:01:18.6]} 14... O-O-O {[%clk 0:01:34.8]} 15. O-O-O {[%clk 0:01:15.6]}
15... Rdg8 {[%clk 0:01:33.5]} 16. Nh4 {[%clk 0:01:00.9]} 16... Rg3 {[%clk
0:01:21.2]} 17. Rdf1 {[%clk 0:00:53.8]} 17... Rhg8 {[%clk 0:01:20.3]} 18. Rf3
{[%clk 0:00:50.7]} 18... d5 {[%clk 0:01:07.4]} 19. exd5 {[%clk 0:00:32.5]} 19...
Bxd5 {[%clk 0:01:06.7]} 20. Ne4 {[%clk 0:00:30.6]} 20... Bxe4 {[%clk 0:00:59.8]}
21. dxe4 {[%clk 0:00:29.8]} 21... Qc6 {[%clk 0:00:50.2]} 22. Rd1 {[%clk
0:00:24.8]} 22... b4 {[%clk 0:00:45.5]} 23. Rdd3 {[%clk 0:00:21]} 23... Rxf3
{[%clk 0:00:42.8]} 24. Nxf3 {[%clk 0:00:21.9]} 24... Rg3 {[%clk 0:00:38.1]} 25.
Nxe5 {[%clk 0:00:18.1]} 25... fxe5 {[%clk 0:00:37.4]} 26. Rxg3 {[%clk
0:00:17.8]} 26... Bd4 {[%clk 0:00:35.8]} 27. Rd3 {[%clk 0:00:17.7]} 27... a5
{[%clk 0:00:33.9]} 28. Kb1 {[%clk 0:00:17.7]} 28... Qc5 {[%clk 0:00:33.8]} 29.
Qd1 {[%clk 0:00:17.3]} 29... Qa7 {[%clk 0:00:31.6]} 30. Qd2 {[%clk 0:00:10.4]}
30... Qb6 {[%clk 0:00:31]} 31. c3 {[%clk 0:00:09.7]} 31... bxc3 {[%clk
0:00:30.6]} 32. Rxc3 {[%clk 0:00:09.7]} 32... Bxc3 {[%clk 0:00:29.7]} 33. Qxc3
{[%clk 0:00:10.6]} 33... Qg1+ {[%clk 0:00:29.6]} 34. Ka2 {[%clk 0:00:11.2]}
34... Qxg2 {[%clk 0:00:29.9]} 35. Qxe5 {[%clk 0:00:11.7]} 35... Qxh3 {[%clk
0:00:28.7]} 0-1

[Event "Betsys MČR v online bleskovém šachu 2021"]
[Site "Chess.com"]
[Date "2021.04.17"]
[Round "2"]
[White "xnepom"]
[Black "JIDEMONI"]
[Result "1-0"]
[WhiteElo "2252"]
[BlackElo "1900"]
[TimeControl "180+1"]
[EndTime "9:17:33 PDT"]
[Termination "Uživatel xnepom zvítězil po vzdání soupeře"]

1. e4 {[%clk 0:03:00.9]} 1... e6 {[%clk 0:02:59.4]} 2. d4 {[%clk 0:03:00.3]}
2... d5 {[%clk 0:02:59.3]} 3. Nd2 {[%clk 0:03:00.9]} 3... c5 {[%clk 0:02:57.3]}
4. exd5 {[%clk 0:03:00.6]} 4... exd5 {[%clk 0:02:57]} 5. Ngf3 {[%clk 0:03:01.1]}
5... Nf6 {[%clk 0:02:56]} 6. Bb5+ {[%clk 0:03:00.7]} 6... Bd7 {[%clk 0:02:55.6]}
7. Qe2+ {[%clk 0:03:01.3]} 7... Qe7 {[%clk 0:02:54.8]} 8. Bxd7+ {[%clk
0:02:50.9]} 8... Nbxd7 {[%clk 0:02:54]} 9. Qxe7+ {[%clk 0:02:51.3]} 9... Bxe7
{[%clk 0:02:53.6]} 10. O-O {[%clk 0:02:51.9]} 10... O-O {[%clk 0:02:52.2]} 11.
Re1 {[%clk 0:02:49.4]} 11... Rfe8 {[%clk 0:02:51.8]} 12. dxc5 {[%clk 0:02:35]}
12... Nxc5 {[%clk 0:02:47.5]} 13. Nb3 {[%clk 0:02:30.3]} 13... Nce4 {[%clk
0:02:44.1]} 14. Be3 {[%clk 0:02:27.7]} 14... b6 {[%clk 0:02:32.3]} 15. Rad1
{[%clk 0:02:26.5]} 15... Rad8 {[%clk 0:02:31.6]} 16. h3 {[%clk 0:02:17.9]} 16...
Nc5 {[%clk 0:02:21.9]} 17. Nfd4 {[%clk 0:02:12.6]} 17... Nxb3 {[%clk 0:02:13]}
18. axb3 {[%clk 0:02:11.3]} 18... Bc5 {[%clk 0:02:08.5]} 19. c3 {[%clk
0:02:06.9]} 19... Ne4 {[%clk 0:02:07]} 20. b4 {[%clk 0:02:05.3]} 20... Bxd4
{[%clk 0:02:06.7]} 21. Bxd4 {[%clk 0:02:05.5]} 21... f6 {[%clk 0:02:00]} 22. Ra1
{[%clk 0:02:01.7]} 22... Rd7 {[%clk 0:01:52.5]} 23. f3 {[%clk 0:01:52.2]} 23...
Nd6 {[%clk 0:01:51.2]} 24. Rxe8+ {[%clk 0:01:52.6]} 24... Nxe8 {[%clk
0:01:51.2]} 25. Kf2 {[%clk 0:01:47.2]} 25... Kf7 {[%clk 0:01:49.8]} 26. g4
{[%clk 0:01:45.9]} 26... Nd6 {[%clk 0:01:48.8]} 27. Rd1 {[%clk 0:01:35.3]} 27...
Nb5 {[%clk 0:01:43.6]} 28. Be3 {[%clk 0:01:33.1]} 28... Ke6 {[%clk 0:01:40.9]}
29. Bf4 {[%clk 0:01:28.6]} 29... Nd6 {[%clk 0:01:39]} 30. Re1+ {[%clk
0:01:22.8]} 30... Kf7 {[%clk 0:01:38.6]} 31. Bxd6 {[%clk 0:01:13.2]} 31... Rxd6
{[%clk 0:01:38.6]} 32. Ra1 {[%clk 0:01:12.9]} 32... Rd7 {[%clk 0:01:35.9]} 33.
Ke3 {[%clk 0:01:13.1]} 33... g6 {[%clk 0:01:33.8]} 34. Kd4 {[%clk 0:01:12.4]}
34... Ke6 {[%clk 0:01:33.8]} 35. Re1+ {[%clk 0:01:09.3]} 35... Kd6 {[%clk
0:01:33.9]} 36. Re8 {[%clk 0:01:08.9]} 36... Rc7 {[%clk 0:01:31.6]} 37. b3
{[%clk 0:01:08.3]} 37... a5 {[%clk 0:01:28]} 38. bxa5 {[%clk 0:01:01.9]} 38...
bxa5 {[%clk 0:01:28.9]} 39. Ra8 {[%clk 0:01:01.9]} 39... Rb7 {[%clk 0:01:21.3]}
40. Rxa5 {[%clk 0:00:59.5]} 40... Rxb3 {[%clk 0:01:20.4]} 41. Rxd5+ {[%clk
0:00:59.6]} 41... Ke6 {[%clk 0:01:19.3]} 42. Ra5 {[%clk 0:00:55.9]} 42... Rb1
{[%clk 0:01:17.3]} 43. Ra6+ {[%clk 0:00:56]} 43... Kf7 {[%clk 0:01:15.5]} 44.
Ra7+ {[%clk 0:00:55.7]} 44... Ke6 {[%clk 0:01:11.8]} 45. Rxh7 {[%clk 0:00:50.4]}
45... Rf1 {[%clk 0:01:10.2]} 46. Ke3 {[%clk 0:00:48.9]} 46... Rc1 {[%clk
0:01:09.6]} 47. Rc7 {[%clk 0:00:44.4]} 47... Rh1 {[%clk 0:01:09.1]} 48. Rc6+
{[%clk 0:00:40.9]} 48... Kf7 {[%clk 0:01:08]} 49. c4 {[%clk 0:00:40.8]} 49...
Rxh3 {[%clk 0:01:07.2]} 50. c5 {[%clk 0:00:40.4]} 50... f5 {[%clk 0:01:06.5]}
51. g5 {[%clk 0:00:34.2]} 51... Rg3 {[%clk 0:01:00.4]} 52. Rc7+ {[%clk
0:00:28.3]} 52... Kg8 {[%clk 0:00:59.1]} 53. Kf4 {[%clk 0:00:27.7]} 53... Rg1
{[%clk 0:00:58.7]} 54. c6 {[%clk 0:00:26.5]} 54... Rc1 {[%clk 0:00:58.2]} 55.
Ke5 {[%clk 0:00:25.5]} 55... Rc5+ {[%clk 0:00:48.3]} 56. Kf6 {[%clk 0:00:24.9]}
1-0

[Event "Betsys MČR v online bleskovém šachu 2021"]
[Site "Chess.com"]
[Date "2021.04.17"]
[Round "2"]
[White "Soural_J"]
[Black "Hapinka"]
[Result "1-0"]
[WhiteElo "2169"]
[BlackElo "1853"]
[TimeControl "180+1"]
[EndTime "9:17:33 PDT"]
[Termination "Uživatel Soural_J zvítězil po vzdání soupeře"]

1. Nf3 {[%clk 0:03:00.9]} 1... Nf6 {[%clk 0:02:59.2]} 2. c4 {[%clk 0:03:00.7]}
2... d6 {[%clk 0:02:59.2]} 3. d4 {[%clk 0:02:59.5]} 3... g6 {[%clk 0:02:59.4]}
4. Nc3 {[%clk 0:02:59.5]} 4... Bg7 {[%clk 0:02:59.9]} 5. e4 {[%clk 0:02:59.5]}
5... O-O {[%clk 0:02:59.9]} 6. Be2 {[%clk 0:02:59.6]} 6... e5 {[%clk 0:02:59.9]}
7. dxe5 {[%clk 0:03:00.1]} 7... dxe5 {[%clk 0:02:59.2]} 8. Qxd8 {[%clk
0:03:00.6]} 8... Rxd8 {[%clk 0:02:58.8]} 9. Bg5 {[%clk 0:03:01]} 9... Re8 {[%clk
0:02:55.6]} 10. O-O-O {[%clk 0:02:59.2]} 10... Nc6 {[%clk 0:02:29.3]} 11. Nb5
{[%clk 0:02:44.8]} 11... Nxe4 {[%clk 0:02:08.8]} 12. Nxc7 {[%clk 0:02:44.5]}
12... Bg4 {[%clk 0:02:07.7]} 13. Be3 {[%clk 0:02:23.7]} 13... f5 {[%clk
0:01:23.2]} 14. h3 {[%clk 0:02:05.8]} 14... Bxf3 {[%clk 0:01:21.8]} 15. Bxf3
{[%clk 0:02:06.5]} 15... Nf6 {[%clk 0:01:06.6]} 16. Bxc6 {[%clk 0:02:01.1]}
16... bxc6 {[%clk 0:01:05.5]} 17. f3 {[%clk 0:01:48]} 17... Rac8 {[%clk
0:00:59.9]} 18. Nxe8 {[%clk 0:01:47.1]} 18... Rxe8 {[%clk 0:00:59.9]} 19. Bxa7
{[%clk 0:01:33.3]} 19... Ra8 {[%clk 0:00:56.9]} 20. Bc5 {[%clk 0:01:33.1]} 20...
Rxa2 {[%clk 0:00:52.4]} 21. Ba3 {[%clk 0:01:31.6]} 21... e4 {[%clk 0:00:48.5]}
22. Kb1 {[%clk 0:01:25.5]} 22... Rxa3 {[%clk 0:00:46.5]} 23. bxa3 {[%clk
0:01:24.9]} 23... e3 {[%clk 0:00:44.4]} 24. f4 {[%clk 0:01:13]} 24... Ne4 {[%clk
0:00:43.8]} 25. Rd8+ {[%clk 0:01:03.3]} 25... Kf7 {[%clk 0:00:41.6]} 26. Rd7+
{[%clk 0:01:03.2]} 26... Kf8 {[%clk 0:00:34.9]} 27. Rxg7 {[%clk 0:01:02.9]}
27... Kxg7 {[%clk 0:00:34.2]} 28. Re1 {[%clk 0:00:51.1]} 28... Nd2+ {[%clk
0:00:28.9]} 29. Kc2 {[%clk 0:00:43.3]} 29... Nxc4 {[%clk 0:00:28.8]} 30. Kb3
{[%clk 0:00:34.4]} 30... Nd2+ {[%clk 0:00:24.3]} 31. Kc3 {[%clk 0:00:30.9]}
31... Ne4+ {[%clk 0:00:24.2]} 32. Kd4 {[%clk 0:00:24.2]} 32... c5+ {[%clk
0:00:20.4]} 33. Kxe3 {[%clk 0:00:17.4]} 33... Kf6 {[%clk 0:00:20.6]} 34. Kd3
{[%clk 0:00:16]} 34... Ke6 {[%clk 0:00:20.2]} 35. Rxe4+ {[%clk 0:00:15.4]} 35...
fxe4+ {[%clk 0:00:19.8]} 36. Kxe4 {[%clk 0:00:15.4]} 36... Kd6 {[%clk
0:00:16.7]} 37. g4 {[%clk 0:00:15.3]} 1-0